[Event "Titled Tuesday Blitz July 13 2021"]
[White "Shevelev, Dmitri"]
[Black "Khanin, Semen"]
[WhiteFideId "2802627"]
[BlackFideId "4111990"]
[WhiteElo "2262"]
[BlackElo "2521"]
[Result "0-1"]
[Round "05"]
[TimeControl "180+1"]
[Date "2021.07.13"]
[WhiteClock "0:00:03"]
[BlackClock "0:01:26"]

1. d4 {[%clk 0:02:47]}  Nf6 {[%clk 0:02:58]} 2. Nf3 {[%clk 0:02:45]}  g6 {[%clk 0:02:58]} 3. Nc3 {[%clk 0:02:45]}  Bg7 {[%clk 0:02:57]} 4. e4 {[%clk 0:02:44]}  d6 {[%clk 0:02:57]} 5. Be3 {[%clk 0:02:43]}  a6 {[%clk 0:02:53]} 6. Qd2 {[%clk 0:02:43]}  b5 {[%clk 0:02:49]} 7. Bd3 {[%clk 0:02:44]}  Bb7 {[%clk 0:02:49]} 8. a3 {[%clk 0:02:43]}  Nbd7 {[%clk 0:02:48]} 9. Bh6 {[%clk 0:02:42]}  O-O {[%clk 0:02:39]} 10. h4 {[%clk 0:02:41]}  Bxh6 {[%clk 0:02:35]} 11. Qxh6 {[%clk 0:02:40]}  Ng4 {[%clk 0:02:35]} 12. Qg5 {[%clk 0:02:23]}  h5 {[%clk 0:02:35]} 13. Nh2 {[%clk 0:01:43]}  Nxh2 {[%clk 0:02:26]} 14. Rxh2 {[%clk 0:01:44]}  e5 {[%clk 0:02:27]} 15. Qe3 {[%clk 0:01:23]}  Qf6 {[%clk 0:02:22]} 16. dxe5 {[%clk 0:01:18]}  Nxe5 {[%clk 0:02:21]} 17. f3 {[%clk 0:01:18]}  c5 {[%clk 0:02:05]} 18. O-O-O {[%clk 0:01:14]}  b4 {[%clk 0:02:03]} 19. axb4 {[%clk 0:01:10]}  cxb4 {[%clk 0:02:04]} 20. Ne2 {[%clk 0:00:38]}  a5 {[%clk 0:01:59]} 21. Qg5 {[%clk 0:00:27]}  Qg7 {[%clk 0:01:56]} 22. Ng3 {[%clk 0:00:16]}  a4 {[%clk 0:01:55]} 23. Nxh5 {[%clk 0:00:04]}  gxh5 {[%clk 0:01:54]} 24. Qxh5 {[%clk 0:00:04]}  a3 {[%clk 0:01:53]} 25. bxa3 {[%clk 0:00:04]}  bxa3 {[%clk 0:01:51]} 26. Kd2 {[%clk 0:00:04]}  a2 {[%clk 0:01:50]} 27. Rhh1 {[%clk 0:00:05]}  Nxd3 {[%clk 0:01:49]} 28. cxd3 {[%clk 0:00:05]}  a1=Q {[%clk 0:01:47]} 29. Rxa1 {[%clk 0:00:05]}  Rxa1 {[%clk 0:01:47]} 30. Rh3 {[%clk 0:00:05]}  Qb2+ {[%clk 0:01:45]} 31. Ke3 {[%clk 0:00:05]}  Re1+ {[%clk 0:01:45]} 32. Kf4 {[%clk 0:00:05]}  Qf6+ {[%clk 0:01:28]} 33. Kg3 {[%clk 0:00:04]}  Qg6+ {[%clk 0:01:27]} 34. Qg4 {[%clk 0:00:02]}  Qxg4+ {[%clk 0:01:26]} 35. Kxg4 {[%clk 0:00:03]}  Bc8+ {[%clk 0:01:26]} 36. Kg5 {[%clk 0:00:03]}  Bxh3 {[%clk 0:01:26]} 0-1


[Site "https://www.chess.com"]

[Event "Titled Tuesday Blitz July 13 2021"]
[White "Shkapenko, Pavel"]
[Black "Shuvalov, Evgenij"]
[WhiteFideId "4151933"]
[BlackFideId "4187237"]
[WhiteElo "2386"]
[BlackElo "2163"]
[Result "1-0"]
[Round "05"]
[TimeControl "180+1"]
[Date "2021.07.13"]
[WhiteClock "0:02:04"]
[BlackClock "0:01:41"]

1. e4 {[%clk 0:03:00]}  e6 {[%clk 0:02:59]} 2. d4 {[%clk 0:03:00]}  d5 {[%clk 0:02:59]} 3. exd5 {[%clk 0:03:01]}  exd5 {[%clk 0:02:59]} 4. Nf3 {[%clk 0:03:02]}  Nf6 {[%clk 0:02:57]} 5. c4 {[%clk 0:03:02]}  Be7 {[%clk 0:02:55]} 6. Nc3 {[%clk 0:03:02]}  O-O {[%clk 0:02:55]} 7. cxd5 {[%clk 0:03:03]}  Nxd5 {[%clk 0:02:54]} 8. Bc4 {[%clk 0:03:03]}  Nb6 {[%clk 0:02:53]} 9. Bb3 {[%clk 0:03:01]}  Bg4 {[%clk 0:02:52]} 10. h3 {[%clk 0:03:01]}  Bxf3 {[%clk 0:02:46]} 11. Qxf3 {[%clk 0:03:00]}  Qxd4 {[%clk 0:02:46]} 12. Qxb7 {[%clk 0:02:58]}  Bd6 {[%clk 0:02:45]} 13. Be3 {[%clk 0:02:55]}  Qe5 {[%clk 0:02:39]} 14. O-O-O {[%clk 0:02:54]}  N8d7 {[%clk 0:02:32]} 15. Rhe1 {[%clk 0:02:53]}  Nc5 {[%clk 0:02:28]} 16. Bxc5 {[%clk 0:02:33]}  Qxc5 {[%clk 0:02:29]} 17. Kb1 {[%clk 0:02:33]}  a5 {[%clk 0:02:24]} 18. Ne4 {[%clk 0:02:33]}  Qf5 {[%clk 0:02:21]} 19. g4 {[%clk 0:02:32]}  Qg6 {[%clk 0:02:14]} 20. Rxd6 {[%clk 0:02:32]}  cxd6 {[%clk 0:02:10]} 21. Qxb6 {[%clk 0:02:32]}  Rab8 {[%clk 0:02:05]} 22. Qxd6 {[%clk 0:02:28]}  Rfe8 {[%clk 0:01:53]} 23. Qxg6 {[%clk 0:02:26]}  hxg6 {[%clk 0:01:54]} 24. Bxf7+ {[%clk 0:02:25]}  Kxf7 {[%clk 0:01:54]} 25. Nd6+ {[%clk 0:02:25]}  Kf8 {[%clk 0:01:54]} 26. Rxe8+ {[%clk 0:02:25]}  Rxe8 {[%clk 0:01:55]} 27. Nxe8 {[%clk 0:02:25]}  Kxe8 {[%clk 0:01:56]} 28. Kc2 {[%clk 0:02:25]}  Ke7 {[%clk 0:01:56]} 29. Kd3 {[%clk 0:02:25]}  Kd6 {[%clk 0:01:55]} 30. Ke4 {[%clk 0:02:24]}  Kc5 {[%clk 0:01:54]} 31. f4 {[%clk 0:02:13]}  Kc4 {[%clk 0:01:53]} 32. h4 {[%clk 0:02:13]}  a4 {[%clk 0:01:47]} 33. f5 {[%clk 0:02:11]}  gxf5+ {[%clk 0:01:46]} 34. gxf5 {[%clk 0:02:11]}  Kc5 {[%clk 0:01:46]} 35. f6 {[%clk 0:02:06]}  gxf6 {[%clk 0:01:46]} 36. h5 {[%clk 0:02:06]}  f5+ {[%clk 0:01:42]} 37. Kxf5 {[%clk 0:02:06]}  Kd4 {[%clk 0:01:42]} 38. h6 {[%clk 0:02:06]}  Kd3 {[%clk 0:01:42]} 39. h7 {[%clk 0:02:06]}  Kc2 {[%clk 0:01:42]} 40. h8=Q {[%clk 0:02:06]}  Kb1 {[%clk 0:01:42]} 41. b3 {[%clk 0:02:04]}  a3 {[%clk 0:01:41]} 42. Qh2 {[%clk 0:02:03]}  Ka1 {[%clk 0:01:40]} 43. b4 {[%clk 0:02:04]}  Kb1 {[%clk 0:01:40]} 44. b5 {[%clk 0:02:04]}  Ka1 {[%clk 0:01:41]} 45. b6 {[%clk 0:02:04]}  Kb1 {[%clk 0:01:41]} 46. b7 {[%clk 0:02:05]}  Ka1 {[%clk 0:01:42]} 47. Ke4 {[%clk 0:02:05]}  Kb1 {[%clk 0:01:41]} 48. b8=Q+ {[%clk 0:02:05]}  Ka1 {[%clk 0:01:41]} 49. Qbe5+ {[%clk 0:02:04]}  Kb1 {[%clk 0:01:41]} 50. Qb5+ {[%clk 0:02:05]}  Ka1 {[%clk 0:01:41]} 51. Qf1# {[%clk 0:02:04]} 1-0


[Site "https://www.chess.com"]

[Event "Titled Tuesday Blitz July 13 2021"]
[White "Sonis, Francesco"]
[Black "Markidis, Konstantinos"]
[WhiteFideId "895733"]
[BlackFideId "4203500"]
[WhiteElo "2373"]
[BlackElo "2304"]
[Result "1-0"]
[Round "05"]
[TimeControl "180+1"]
[Date "2021.07.13"]
[WhiteClock "0:00:20"]
[BlackClock "0:00:09"]

1. d4 {[%clk 0:03:00]}  Nf6 {[%clk 0:02:59]} 2. c4 {[%clk 0:02:59]}  e6 {[%clk 0:02:59]} 3. Nc3 {[%clk 0:02:59]}  Bb4 {[%clk 0:03:00]} 4. f3 {[%clk 0:02:55]}  O-O {[%clk 0:02:57]} 5. a3 {[%clk 0:02:41]}  Bxc3+ {[%clk 0:02:57]} 6. bxc3 {[%clk 0:02:42]}  c5 {[%clk 0:02:57]} 7. e3 {[%clk 0:02:30]}  Qa5 {[%clk 0:02:43]} 8. Bd2 {[%clk 0:02:08]}  d6 {[%clk 0:02:41]} 9. Bd3 {[%clk 0:02:00]}  e5 {[%clk 0:02:36]} 10. Ne2 {[%clk 0:01:54]}  Re8 {[%clk 0:02:31]} 11. Ng3 {[%clk 0:01:10]}  Qd8 {[%clk 0:02:04]} 12. O-O {[%clk 0:01:08]}  exd4 {[%clk 0:01:41]} 13. exd4 {[%clk 0:01:05]}  cxd4 {[%clk 0:01:41]} 14. cxd4 {[%clk 0:01:03]}  Nc6 {[%clk 0:01:31]} 15. Bc3 {[%clk 0:01:00]}  d5 {[%clk 0:01:28]} 16. c5 {[%clk 0:00:58]}  b6 {[%clk 0:01:11]} 17. Rc1 {[%clk 0:00:56]}  bxc5 {[%clk 0:01:06]} 18. dxc5 {[%clk 0:00:57]}  d4 {[%clk 0:01:07]} 19. Ba1 {[%clk 0:00:55]}  Rb8 {[%clk 0:00:56]} 20. Qd2 {[%clk 0:00:54]}  Be6 {[%clk 0:00:48]} 21. Ne4 {[%clk 0:00:44]}  Bd5 {[%clk 0:00:44]} 22. Nd6 {[%clk 0:00:42]}  Re5 {[%clk 0:00:37]} 23. Bb5 {[%clk 0:00:39]}  Na5 {[%clk 0:00:21]} 24. Qxd4 {[%clk 0:00:37]}  Re6 {[%clk 0:00:20]} 25. Qf4 {[%clk 0:00:34]}  Rxd6 {[%clk 0:00:20]} 26. cxd6 {[%clk 0:00:35]}  Rxb5 {[%clk 0:00:19]} 27. Bxf6 {[%clk 0:00:33]}  gxf6 {[%clk 0:00:19]} 28. Qg4+ {[%clk 0:00:33]}  Kh8 {[%clk 0:00:16]} 29. Rc8 {[%clk 0:00:34]}  Rb8 {[%clk 0:00:11]} 30. d7 {[%clk 0:00:31]}  Be6 {[%clk 0:00:10]} 31. Rxd8+ {[%clk 0:00:28]}  Rxd8 {[%clk 0:00:10]} 32. Qf4 {[%clk 0:00:19]}  Rxd7 {[%clk 0:00:09]} 33. Qxf6+ {[%clk 0:00:19]}  Kg8 {[%clk 0:00:09]} 34. Qg5+ {[%clk 0:00:19]}  Kf8 {[%clk 0:00:09]} 35. Qxa5 {[%clk 0:00:20]} 1-0


[Site "https://www.chess.com"]

[Event "Titled Tuesday Blitz July 13 2021"]
[White "Sydoryka, Vladyslav"]
[Black "Gledura, Benjamin"]
[WhiteFideId "14145928"]
[BlackFideId "712779"]
[WhiteElo "2200"]
[BlackElo "2326"]
[Result "1-0"]
[Round "05"]
[TimeControl "180+1"]
[Date "2021.07.13"]
[WhiteClock "0:00:06"]
[BlackClock "0:00:03"]

1. c4 {[%clk 0:03:00]}  g6 {[%clk 0:02:59]} 2. g3 {[%clk 0:03:01]}  Bg7 {[%clk 0:02:59]} 3. Bg2 {[%clk 0:03:01]}  d6 {[%clk 0:02:56]} 4. Nc3 {[%clk 0:03:01]}  e5 {[%clk 0:02:54]} 5. Nf3 {[%clk 0:03:01]}  Nc6 {[%clk 0:02:55]} 6. O-O {[%clk 0:03:02]}  Nge7 {[%clk 0:02:55]} 7. Rb1 {[%clk 0:03:02]}  a5 {[%clk 0:02:52]} 8. a3 {[%clk 0:03:01]}  O-O {[%clk 0:02:52]} 9. b4 {[%clk 0:03:02]}  axb4 {[%clk 0:02:52]} 10. axb4 {[%clk 0:03:03]}  f5 {[%clk 0:02:51]} 11. b5 {[%clk 0:03:03]}  Na5 {[%clk 0:02:50]} 12. d3 {[%clk 0:03:02]}  e4 {[%clk 0:02:48]} 13. Nxe4 {[%clk 0:02:58]}  fxe4 {[%clk 0:02:48]} 14. dxe4 {[%clk 0:02:59]}  Kh8 {[%clk 0:02:45]} 15. Nd2 {[%clk 0:02:58]}  Be6 {[%clk 0:02:44]} 16. Qc2 {[%clk 0:02:57]}  c6 {[%clk 0:02:42]} 17. Bb2 {[%clk 0:02:55]}  Rf7 {[%clk 0:02:33]} 18. Bxg7+ {[%clk 0:02:52]}  Rxg7 {[%clk 0:02:34]} 19. Rfd1 {[%clk 0:02:48]}  cxb5 {[%clk 0:02:30]} 20. Rxb5 {[%clk 0:02:49]}  Rc8 {[%clk 0:02:28]} 21. e5 {[%clk 0:02:23]}  Nec6 {[%clk 0:02:17]} 22. Ne4 {[%clk 0:02:18]}  Bxc4 {[%clk 0:02:11]} 23. Rxd6 {[%clk 0:01:41]}  Qf8 {[%clk 0:01:11]} 24. Rc5 {[%clk 0:01:36]}  Bg8 {[%clk 0:01:09]} 25. Nf6 {[%clk 0:01:16]}  Nb3 {[%clk 0:00:50]} 26. Rc3 {[%clk 0:01:13]}  Nbd4 {[%clk 0:00:45]} 27. Rxd4 {[%clk 0:01:09]}  Nxd4 {[%clk 0:00:24]} 28. Rxc8 {[%clk 0:01:09]}  Qb4 {[%clk 0:00:24]} 29. Qa2 {[%clk 0:00:26]}  Nb3 {[%clk 0:00:08]} 30. Bd5 {[%clk 0:00:25]}  Qe1+ {[%clk 0:00:04]} 31. Kg2 {[%clk 0:00:24]}  Nd2 {[%clk 0:00:04]} 32. g4 {[%clk 0:00:06]}  Qf1+ {[%clk 0:00:04]} 33. Kg3 {[%clk 0:00:06]}  Qg1+ {[%clk 0:00:04]} 34. Bg2 {[%clk 0:00:07]}  Nf1+ {[%clk 0:00:04]} 35. Kf3 {[%clk 0:00:07]}  Nxh2+ {[%clk 0:00:04]} 36. Ke4 {[%clk 0:00:08]}  Qxg2+ {[%clk 0:00:03]} 37. Kd3 {[%clk 0:00:06]} 1-0


[Site "https://www.chess.com"]

[Event "Titled Tuesday Blitz July 13 2021"]
[White "Timofeev, Artyom"]
[Black "Hebden, Mark L"]
[WhiteFideId "4140419"]
[BlackFideId "400084"]
[WhiteElo "2582"]
[BlackElo "2457"]
[Result "1-0"]
[Round "05"]
[TimeControl "180+1"]
[Date "2021.07.13"]
[WhiteClock "0:00:08"]
[BlackClock "0:00:01"]

1. c4 {[%clk 0:03:00]}  g6 {[%clk 0:02:59]} 2. g3 {[%clk 0:03:00]}  Bg7 {[%clk 0:02:59]} 3. Bg2 {[%clk 0:03:00]}  Nf6 {[%clk 0:02:58]} 4. Nc3 {[%clk 0:03:00]}  O-O {[%clk 0:02:57]} 5. d3 {[%clk 0:03:00]}  d6 {[%clk 0:02:56]} 6. Nf3 {[%clk 0:03:00]}  e5 {[%clk 0:02:54]} 7. O-O {[%clk 0:02:59]}  Nc6 {[%clk 0:02:53]} 8. Rb1 {[%clk 0:02:59]}  a5 {[%clk 0:02:52]} 9. b3 {[%clk 0:02:59]}  h6 {[%clk 0:02:49]} 10. Bb2 {[%clk 0:02:59]}  Be6 {[%clk 0:02:47]} 11. h3 {[%clk 0:02:58]}  Qd7 {[%clk 0:02:41]} 12. Kh2 {[%clk 0:02:58]}  Rae8 {[%clk 0:02:39]} 13. Rc1 {[%clk 0:02:55]}  Kh8 {[%clk 0:02:29]} 14. Nd2 {[%clk 0:02:53]}  Nh7 {[%clk 0:02:23]} 15. Nd5 {[%clk 0:02:49]}  f5 {[%clk 0:02:22]} 16. f4 {[%clk 0:02:46]}  Nd4 {[%clk 0:02:20]} 17. e3 {[%clk 0:02:45]}  Nc6 {[%clk 0:02:16]} 18. Re1 {[%clk 0:02:36]}  Nd8 {[%clk 0:02:14]} 19. Nf3 {[%clk 0:02:32]}  c6 {[%clk 0:02:11]} 20. Nc3 {[%clk 0:02:27]}  g5 {[%clk 0:02:07]} 21. Ne2 {[%clk 0:02:22]}  Nf7 {[%clk 0:02:03]} 22. Qd2 {[%clk 0:02:21]}  Nf6 {[%clk 0:01:57]} 23. Rf1 {[%clk 0:02:10]}  exf4 {[%clk 0:01:43]} 24. exf4 {[%clk 0:02:06]}  g4 {[%clk 0:01:36]} 25. Nh4 {[%clk 0:02:06]}  Kh7 {[%clk 0:01:36]} 26. Nd4 {[%clk 0:02:05]}  h5 {[%clk 0:01:25]} 27. Rce1 {[%clk 0:01:59]}  Nh6 {[%clk 0:01:24]} 28. Kh1 {[%clk 0:01:48]}  gxh3 {[%clk 0:01:19]} 29. Bxh3 {[%clk 0:01:48]}  Nfg4 {[%clk 0:01:19]} 30. Ndf3 {[%clk 0:01:41]}  Bxb2 {[%clk 0:01:17]} 31. Ng5+ {[%clk 0:01:38]}  Kg8 {[%clk 0:01:08]} 32. Qxb2 {[%clk 0:01:38]}  Bf7 {[%clk 0:01:01]} 33. Qd4 {[%clk 0:01:06]}  d5 {[%clk 0:01:00]} 34. c5 {[%clk 0:01:05]}  Rxe1 {[%clk 0:00:58]} 35. Rxe1 {[%clk 0:01:05]}  Re8 {[%clk 0:00:58]} 36. Nhf3 {[%clk 0:00:40]}  Rxe1+ {[%clk 0:00:56]} 37. Nxe1 {[%clk 0:00:40]}  Qe7 {[%clk 0:00:56]} 38. Ngf3 {[%clk 0:00:39]}  Qe2 {[%clk 0:00:54]} 39. Bg2 {[%clk 0:00:36]}  Qxa2 {[%clk 0:00:44]} 40. Ne5 {[%clk 0:00:32]}  Qb1 {[%clk 0:00:43]} 41. Qc3 {[%clk 0:00:26]}  Qd1 {[%clk 0:00:38]} 42. Qxa5 {[%clk 0:00:22]}  Ne3 {[%clk 0:00:33]} 43. Nf3 {[%clk 0:00:13]}  Nxg2 {[%clk 0:00:30]} 44. Kxg2 {[%clk 0:00:11]}  Qe2+ {[%clk 0:00:30]} 45. Kg1 {[%clk 0:00:12]}  Ng4 {[%clk 0:00:29]} 46. Qd2 {[%clk 0:00:12]}  Qxd2 {[%clk 0:00:24]} 47. Nxd2 {[%clk 0:00:12]}  d4 {[%clk 0:00:24]} 48. Nef3 {[%clk 0:00:12]}  Ne3 {[%clk 0:00:17]} 49. Nxd4 {[%clk 0:00:12]}  Nd5 {[%clk 0:00:09]} 50. Nxf5 {[%clk 0:00:11]}  Nb4 {[%clk 0:00:09]} 51. d4 {[%clk 0:00:11]}  Nc2 {[%clk 0:00:08]} 52. Kf2 {[%clk 0:00:07]}  Be6 {[%clk 0:00:08]} 53. Nd6 {[%clk 0:00:07]}  Nxd4 {[%clk 0:00:08]} 54. Nxb7 {[%clk 0:00:07]}  Bxb3 {[%clk 0:00:05]} 55. Nxb3 {[%clk 0:00:06]}  Nxb3 {[%clk 0:00:05]} 56. Ke3 {[%clk 0:00:07]}  Kf7 {[%clk 0:00:05]} 57. Ke4 {[%clk 0:00:07]}  Ke6 {[%clk 0:00:05]} 58. f5+ {[%clk 0:00:07]}  Kf6 {[%clk 0:00:05]} 59. Kf4 {[%clk 0:00:07]}  Nd4 {[%clk 0:00:05]} 60. Nd6 {[%clk 0:00:07]}  Ne2+ {[%clk 0:00:04]} 61. Kf3 {[%clk 0:00:07]}  Nd4+ {[%clk 0:00:04]} 62. Ke4 {[%clk 0:00:08]}  Ne2 {[%clk 0:00:04]} 63. Kf3 {[%clk 0:00:08]}  Nd4+ {[%clk 0:00:03]} 64. Kf4 {[%clk 0:00:08]}  Ne2+ {[%clk 0:00:03]} 65. Ke3 {[%clk 0:00:08]}  Nxg3 {[%clk 0:00:03]} 66. Kf4 {[%clk 0:00:08]}  Ne2+ {[%clk 0:00:02]} 67. Kf3 {[%clk 0:00:08]}  Nd4+ {[%clk 0:00:02]} 68. Ke4 {[%clk 0:00:08]}  Nxf5 {[%clk 0:00:01]} 69. Nxf5 {[%clk 0:00:08]}  Ke6 {[%clk 0:00:01]} 70. Ng7+ {[%clk 0:00:08]} 1-0


[Site "https://www.chess.com"]

[Event "Titled Tuesday Blitz July 13 2021"]
[White "Tomiello, Lucas Costamilan"]
[Black "Holt, Conrad"]
[WhiteFideId "22701940"]
[BlackFideId "2034387"]
[WhiteElo "1945"]
[BlackElo "2586"]
[Result "0-1"]
[Round "05"]
[TimeControl "180+1"]
[Date "2021.07.13"]
[WhiteClock "0:00:02"]
[BlackClock "0:00:04"]

1. e4 {[%clk 0:03:00]}  e6 {[%clk 0:02:59]} 2. d4 {[%clk 0:03:01]}  d5 {[%clk 0:02:59]} 3. Nd2 {[%clk 0:03:01]}  c5 {[%clk 0:02:58]} 4. Ngf3 {[%clk 0:02:52]}  cxd4 {[%clk 0:02:57]} 5. Nxd4 {[%clk 0:02:53]}  Nf6 {[%clk 0:02:56]} 6. exd5 {[%clk 0:02:46]}  Nxd5 {[%clk 0:02:56]} 7. N2f3 {[%clk 0:02:44]}  Bb4+ {[%clk 0:02:56]} 8. Bd2 {[%clk 0:02:39]}  O-O {[%clk 0:02:55]} 9. Bxb4 {[%clk 0:02:37]}  Nxb4 {[%clk 0:02:55]} 10. c3 {[%clk 0:02:37]}  N4c6 {[%clk 0:02:53]} 11. Nxc6 {[%clk 0:02:16]}  Nxc6 {[%clk 0:02:53]} 12. Bb5 {[%clk 0:02:14]}  Qb6 {[%clk 0:02:38]} 13. Qe2 {[%clk 0:02:00]}  Rd8 {[%clk 0:02:32]} 14. O-O {[%clk 0:01:59]}  Bd7 {[%clk 0:02:32]} 15. Rfd1 {[%clk 0:01:59]}  Be8 {[%clk 0:02:28]} 16. Bd3 {[%clk 0:01:59]}  g6 {[%clk 0:02:17]} 17. h4 {[%clk 0:01:59]}  Qc5 {[%clk 0:02:11]} 18. Be4 {[%clk 0:01:47]}  a5 {[%clk 0:02:11]} 19. g3 {[%clk 0:01:41]}  a4 {[%clk 0:02:05]} 20. a3 {[%clk 0:01:40]}  Na5 {[%clk 0:01:58]} 21. Kg2 {[%clk 0:01:38]}  Bb5 {[%clk 0:01:57]} 22. Qe1 {[%clk 0:01:25]}  Nc6 {[%clk 0:01:42]} 23. h5 {[%clk 0:00:58]}  Qxh5 {[%clk 0:01:21]} 24. Qe3 {[%clk 0:00:57]}  f5 {[%clk 0:00:17]} 25. Rh1 {[%clk 0:00:52]}  fxe4 {[%clk 0:00:15]} 26. Rxh5 {[%clk 0:00:51]}  exf3+ {[%clk 0:00:15]} 27. Kxf3 {[%clk 0:00:46]}  gxh5 {[%clk 0:00:16]} 28. Qg5+ {[%clk 0:00:41]}  Kf7 {[%clk 0:00:13]} 29. Qxb5 {[%clk 0:00:40]}  Kg6 {[%clk 0:00:07]} 30. Rh1 {[%clk 0:00:38]}  Rd5 {[%clk 0:00:06]} 31. Qxb7 {[%clk 0:00:34]}  Rf8+ {[%clk 0:00:07]} 32. Kg2 {[%clk 0:00:31]}  Ne5 {[%clk 0:00:08]} 33. Rxh5 {[%clk 0:00:16]}  Kxh5 {[%clk 0:00:06]} 34. Qxh7+ {[%clk 0:00:16]}  Kg5 {[%clk 0:00:05]} 35. f4+ {[%clk 0:00:12]}  Kf6 {[%clk 0:00:05]} 36. Qh6+ {[%clk 0:00:09]}  Ng6 {[%clk 0:00:05]} 37. g4 {[%clk 0:00:06]}  Rh8 {[%clk 0:00:04]} 38. g5+ {[%clk 0:00:02]}  Kf7 {[%clk 0:00:05]} 39. f5 {[%clk 0:00:02]}  Rxf5 {[%clk 0:00:04]} 0-1


[Site "https://www.chess.com"]

[Event "Titled Tuesday Blitz July 13 2021"]
[White "Toniutti, Ezio"]
[Black "Martinez Reyes, Pedro Ramon"]
[WhiteFideId "113034"]
[BlackFideId "3901807"]
[WhiteElo "2215"]
[BlackElo "2398"]
[Result "0-1"]
[Round "05"]
[TimeControl "180+1"]
[Date "2021.07.13"]
[WhiteClock "0:00:04"]
[BlackClock "0:00:07"]

1. d4 {[%clk 0:02:47]}  e6 {[%clk 0:02:51]} 2. c4 {[%clk 0:02:46]}  d6 {[%clk 0:02:44]} 3. e4 {[%clk 0:02:45]}  g6 {[%clk 0:02:44]} 4. Nc3 {[%clk 0:02:44]}  Bg7 {[%clk 0:02:45]} 5. Bd3 {[%clk 0:02:44]}  Ne7 {[%clk 0:02:44]} 6. Be3 {[%clk 0:02:41]}  Nbc6 {[%clk 0:02:44]} 7. Nge2 {[%clk 0:02:40]}  Nb4 {[%clk 0:02:43]} 8. O-O {[%clk 0:02:38]}  Nxd3 {[%clk 0:02:42]} 9. Qxd3 {[%clk 0:02:37]}  b6 {[%clk 0:02:43]} 10. f4 {[%clk 0:02:36]}  O-O {[%clk 0:02:39]} 11. Rad1 {[%clk 0:02:33]}  f5 {[%clk 0:02:35]} 12. e5 {[%clk 0:02:26]}  Bb7 {[%clk 0:02:27]} 13. Qc2 {[%clk 0:02:17]}  d5 {[%clk 0:02:17]} 14. c5 {[%clk 0:02:11]}  Nc6 {[%clk 0:02:10]} 15. a3 {[%clk 0:01:58]}  Na5 {[%clk 0:02:09]} 16. Kh1 {[%clk 0:01:48]}  Ba6 {[%clk 0:02:01]} 17. Rfe1 {[%clk 0:01:41]}  Nc4 {[%clk 0:01:42]} 18. Bf2 {[%clk 0:00:54]}  Qc8 {[%clk 0:01:25]} 19. a4 {[%clk 0:00:44]}  c6 {[%clk 0:01:22]} 20. Na2 {[%clk 0:00:34]}  Rb8 {[%clk 0:01:15]} 21. b3 {[%clk 0:00:32]}  Na5 {[%clk 0:01:14]} 22. Nec3 {[%clk 0:00:31]}  bxc5 {[%clk 0:01:04]} 23. dxc5 {[%clk 0:00:32]}  Rxb3 {[%clk 0:01:01]} 24. Ne2 {[%clk 0:00:29]}  Bxe2 {[%clk 0:00:58]} 25. Rxe2 {[%clk 0:00:28]}  Qa6 {[%clk 0:00:56]} 26. Nc1 {[%clk 0:00:25]}  Rb4 {[%clk 0:00:53]} 27. Nd3 {[%clk 0:00:23]}  Re4 {[%clk 0:00:50]} 28. Rb1 {[%clk 0:00:19]}  h6 {[%clk 0:00:37]} 29. h3 {[%clk 0:00:17]}  g5 {[%clk 0:00:37]} 30. g3 {[%clk 0:00:14]}  Kh7 {[%clk 0:00:32]} 31. Rbe1 {[%clk 0:00:09]}  Rb8 {[%clk 0:00:30]} 32. Kg2 {[%clk 0:00:05]}  Rb3 {[%clk 0:00:30]} 33. Nc1 {[%clk 0:00:05]}  Rbb4 {[%clk 0:00:28]} 34. Rxe4 {[%clk 0:00:04]}  Rxe4 {[%clk 0:00:28]} 35. Rxe4 {[%clk 0:00:04]}  fxe4 {[%clk 0:00:29]} 36. Ne2 {[%clk 0:00:05]}  Nc4 {[%clk 0:00:23]} 37. Nd4 {[%clk 0:00:04]}  gxf4 {[%clk 0:00:23]} 38. gxf4 {[%clk 0:00:04]}  Qc8 {[%clk 0:00:20]} 39. Qe2 {[%clk 0:00:03]}  Qe8 {[%clk 0:00:19]} 40. Qg4 {[%clk 0:00:03]}  e3 {[%clk 0:00:18]} 41. Be1 {[%clk 0:00:03]}  h5 {[%clk 0:00:12]} 42. Qxe6 {[%clk 0:00:02]}  Qxe6 {[%clk 0:00:09]} 43. Nxe6 {[%clk 0:00:03]}  Kg6 {[%clk 0:00:09]} 44. Ng5 {[%clk 0:00:04]}  Bf8 {[%clk 0:00:08]} 45. Kf3 {[%clk 0:00:04]}  Bxc5 {[%clk 0:00:08]} 46. h4 {[%clk 0:00:04]}  Kf5 {[%clk 0:00:08]} 47. Ne6 {[%clk 0:00:05]}  Kxe6 {[%clk 0:00:07]} 48. Bc3 {[%clk 0:00:04]}  Kf5 {[%clk 0:00:07]} 49. Be1 {[%clk 0:00:04]}  d4 {[%clk 0:00:07]} 50. Ke2 {[%clk 0:00:04]}  Nb2 {[%clk 0:00:07]} 51. Kf3 {[%clk 0:00:04]}  d3 {[%clk 0:00:07]} 52. Bc3 {[%clk 0:00:04]}  d2 {[%clk 0:00:07]} 53. Ke2 {[%clk 0:00:04]}  Nxa4 {[%clk 0:00:07]} 0-1


[Site "https://www.chess.com"]